[Event "*** SCC Grand Prix: Titled Tuesday Blitz"]
[Site "Chess.com"]
[Date "2020.06.23"]
[Round "9"]
[White "Spartakus1975"]
[Black "RaunakSadhwani2005"]
[Result "0-1"]
[WhiteElo "2682"]
[BlackElo "2880"]
[TimeControl "180+1"]
[EndTime "11:47:11 PDT"]
[Termination "RaunakSadhwani2005 won by resignation"]

1. e4 {[%clk 0:03:00.9]} 1... c6 {[%clk 0:02:59.5]} 2. d3 {[%clk 0:02:48.5]}
2... d5 {[%clk 0:03:00.4]} 3. Nd2 {[%clk 0:02:48.6]} 3... e5 {[%clk 0:02:56.6]}
4. Ngf3 {[%clk 0:02:48.4]} 4... Bd6 {[%clk 0:02:56.8]} 5. d4 {[%clk 0:02:48.6]}
5... exd4 {[%clk 0:02:56.3]} 6. exd5 {[%clk 0:02:48.8]} 6... Nf6 {[%clk
0:02:56.2]} 7. dxc6 {[%clk 0:02:49]} 7... Nxc6 {[%clk 0:02:56.6]} 8. Be2 {[%clk
0:02:49.6]} 8... O-O {[%clk 0:02:56.8]} 9. O-O {[%clk 0:02:50.5]} 9... Bg4
{[%clk 0:02:56.8]} 10. Nb3 {[%clk 0:02:48.4]} 10... Re8 {[%clk 0:02:49.8]} 11.
h3 {[%clk 0:02:45.8]} 11... Bxf3 {[%clk 0:02:49.6]} 12. Bxf3 {[%clk 0:02:45.1]}
12... Be5 {[%clk 0:02:45.5]} 13. Nc5 {[%clk 0:02:36.3]} 13... Qb6 {[%clk
0:02:44.9]} 14. Nd3 {[%clk 0:02:35.9]} 14... Bd6 {[%clk 0:02:45.2]} 15. a3
{[%clk 0:02:25.4]} 15... h6 {[%clk 0:02:43.3]} 16. b3 {[%clk 0:02:10.1]} 16...
Rad8 {[%clk 0:02:42.1]} 17. Bb2 {[%clk 0:02:08.1]} 17... Bb8 {[%clk 0:02:42.6]}
18. Re1 {[%clk 0:02:04.1]} 18... Qc7 {[%clk 0:02:42.9]} 19. g3 {[%clk
0:02:03.6]} 19... Qd6 {[%clk 0:02:42.7]} 20. Qd2 {[%clk 0:02:01]} 20... Bc7
{[%clk 0:02:43]} 21. Rxe8+ {[%clk 0:02:00.1]} 21... Rxe8 {[%clk 0:02:43.7]} 22.
Re1 {[%clk 0:02:00]} 22... Rd8 {[%clk 0:02:43.1]} 23. b4 {[%clk 0:01:58.6]}
23... b6 {[%clk 0:02:32.8]} 24. Kg2 {[%clk 0:01:57.2]} 24... Ne7 {[%clk
0:02:32.4]} 25. Nf4 {[%clk 0:01:45.2]} 25... Nf5 {[%clk 0:02:28.6]} 26. Kg1
{[%clk 0:01:34.7]} 26... h5 {[%clk 0:02:19.5]} 27. Qd3 {[%clk 0:01:32.3]} 27...
g6 {[%clk 0:02:07.9]} 28. Be4 {[%clk 0:01:09]} 28... Nxe4 {[%clk 0:02:04.5]} 29.
Rxe4 {[%clk 0:01:00.8]} 29... Qc6 {[%clk 0:02:02.4]} 30. Qe2 {[%clk 0:00:48.6]}
30... Kh7 {[%clk 0:01:54.2]} 31. Nxh5 {[%clk 0:00:42]} 31... gxh5 {[%clk
0:01:51.1]} 32. Qxh5+ {[%clk 0:00:41.6]} 32... Nh6 {[%clk 0:01:50.6]} 33. Rxd4
{[%clk 0:00:39.8]} 33... Rxd4 {[%clk 0:01:48.7]} 34. Bxd4 {[%clk 0:00:38.6]}
34... Qxc2 {[%clk 0:01:47.2]} 35. Be3 {[%clk 0:00:37.6]} 35... Qg6 {[%clk
0:01:47]} 36. Qd5 {[%clk 0:00:37.3]} 36... Nf5 {[%clk 0:01:44.9]} 37. Bd2 {[%clk
0:00:34.4]} 37... Bd6 {[%clk 0:01:36.8]} 38. g4 {[%clk 0:00:30.2]} 38... Ng7
{[%clk 0:01:29.1]} 39. f4 {[%clk 0:00:28.2]} 39... Qe6 {[%clk 0:01:24.4]} 40.
Qd3+ {[%clk 0:00:27.1]} 40... Kg8 {[%clk 0:01:23]} 41. f5 {[%clk 0:00:26]} 41...
Qe5 {[%clk 0:01:22.9]} 42. Bc3 {[%clk 0:00:25.6]} 42... Qh2+ {[%clk 0:01:22.9]}
43. Kf1 {[%clk 0:00:25.5]} 43... Bg3 {[%clk 0:01:23.4]} 44. Qd4 {[%clk
0:00:23.5]} 44... Qxh3+ {[%clk 0:01:20.6]} 45. Ke2 {[%clk 0:00:24]} 45... Qg2+
{[%clk 0:01:14.1]} 46. Kd3 {[%clk 0:00:23.6]} 46... Qf3+ {[%clk 0:01:12.3]} 47.
Kc2 {[%clk 0:00:23]} 47... Qf2+ {[%clk 0:01:12]} 48. Qxf2 {[%clk 0:00:21.9]}
48... Bxf2 {[%clk 0:01:12.9]} 49. Kd3 {[%clk 0:00:22.1]} 49... Ne8 {[%clk
0:00:59.4]} 50. Kc4 {[%clk 0:00:22]} 50... Nc7 {[%clk 0:00:52.5]} 51. Be5 {[%clk
0:00:20.4]} 51... b5+ {[%clk 0:00:52.7]} 52. Kd3 {[%clk 0:00:20.3]} 52... Bb6
{[%clk 0:00:50.5]} 53. Ke4 {[%clk 0:00:16]} 53... Kf8 {[%clk 0:00:50.6]} 54. g5
{[%clk 0:00:15.6]} 54... Ke8 {[%clk 0:00:49.1]} 55. g6 {[%clk 0:00:11.4]} 55...
Kf8 {[%clk 0:00:40.3]} 56. g7+ {[%clk 0:00:08.5]} 56... Kg8 {[%clk 0:00:40.2]}
57. f6 {[%clk 0:00:08.6]} 57... Ne8 {[%clk 0:00:40.4]} 58. Kf5 {[%clk
0:00:07.2]} 58... Bd8 {[%clk 0:00:40.8]} 59. Bd4 {[%clk 0:00:06.1]} 59... Kh7
{[%clk 0:00:40.7]} 60. Be5 {[%clk 0:00:06]} 60... a6 {[%clk 0:00:37.3]} 61. Bd4
{[%clk 0:00:06]} 61... Bc7 {[%clk 0:00:37.2]} 62. Be5 {[%clk 0:00:04.8]} 62...
Bxe5 {[%clk 0:00:34.9]} 63. Kxe5 {[%clk 0:00:04.5]} 63... Nxg7 {[%clk
0:00:35.3]} 64. fxg7 {[%clk 0:00:03.8]} 64... Kxg7 {[%clk 0:00:36.2]} 65. Kf5
{[%clk 0:00:04]} 65... f6 {[%clk 0:00:35.5]} 66. Ke6 {[%clk 0:00:03.5]} 66...
Kg6 {[%clk 0:00:35.8]} 67. Kd5 {[%clk 0:00:04]} 67... f5 {[%clk 0:00:36]} 68.
Kc5 {[%clk 0:00:04.6]} 68... f4 {[%clk 0:00:36.1]} 69. Kb6 {[%clk 0:00:05.3]}
69... f3 {[%clk 0:00:36.1]} 0-1

[Event "*** SCC Grand Prix: Titled Tuesday Blitz"]
[Site "Chess.com"]
[Date "2020.06.23"]
[Round "9"]
[White "FedaMaster"]
[Black "peixe64"]
[Result "1-0"]
[WhiteElo "2495"]
[BlackElo "2362"]
[TimeControl "180+1"]
[EndTime "11:47:11 PDT"]
[Termination "FedaMaster won by resignation"]

1. e4 {[%clk 0:03:00.9]} 1... c5 {[%clk 0:02:58.2]} 2. d4 {[%clk 0:03:00.5]}
2... cxd4 {[%clk 0:02:58.3]} 3. c3 {[%clk 0:03:00.4]} 3... dxc3 {[%clk
0:02:57.4]} 4. Nxc3 {[%clk 0:03:00.6]} 4... Nc6 {[%clk 0:02:54.3]} 5. Nf3 {[%clk
0:03:01]} 5... e6 {[%clk 0:02:54.6]} 6. Bc4 {[%clk 0:03:00.9]} 6... Bb4 {[%clk
0:02:54.9]} 7. Qc2 {[%clk 0:03:00]} 7... Nge7 {[%clk 0:02:54.6]} 8. O-O {[%clk
0:02:59.2]} 8... Bxc3 {[%clk 0:02:51.4]} 9. bxc3 {[%clk 0:02:55.9]} 9... d5
{[%clk 0:02:49.7]} 10. Rd1 {[%clk 0:02:54.4]} 10... O-O {[%clk 0:02:49.4]} 11.
Bg5 {[%clk 0:01:38.8]} 11... Qa5 {[%clk 0:02:37.4]} 12. Bd3 {[%clk 0:01:09.8]}
12... h6 {[%clk 0:02:28.2]} 13. Be3 {[%clk 0:00:37.9]} 13... dxe4 {[%clk
0:02:23.2]} 14. Bxe4 {[%clk 0:00:37.8]} 14... Nd5 {[%clk 0:02:23.7]} 15. Bd2
{[%clk 0:00:32.8]} 15... Qc5 {[%clk 0:02:12.9]} 16. Rab1 {[%clk 0:00:27.4]}
16... Nf6 {[%clk 0:02:04.2]} 17. Bd3 {[%clk 0:00:20.4]} 17... a6 {[%clk
0:01:55.8]} 18. h3 {[%clk 0:00:18.1]} 18... e5 {[%clk 0:01:51.9]} 19. Be3 {[%clk
0:00:16.1]} 19... Qe7 {[%clk 0:01:51.8]} 20. Nh4 {[%clk 0:00:09.7]} 20... e4
{[%clk 0:01:47.7]} 21. Bc4 {[%clk 0:00:09.9]} 21... Ne5 {[%clk 0:01:45.2]} 22.
Bb3 {[%clk 0:00:08.1]} 22... g5 {[%clk 0:01:21.1]} 23. Qc1 {[%clk 0:00:07.6]}
23... Nh7 {[%clk 0:01:06.8]} 24. Bd4 {[%clk 0:00:05.6]} 24... gxh4 {[%clk
0:01:00.5]} 25. Qxh6 {[%clk 0:00:06.5]} 25... Re8 {[%clk 0:00:42.5]} 26. Re1
{[%clk 0:00:06.6]} 26... Qg5 {[%clk 0:00:36.1]} 27. Qd6 {[%clk 0:00:05.6]} 27...
Bxh3 {[%clk 0:00:30]} 28. g3 {[%clk 0:00:03.9]} 28... hxg3 {[%clk 0:00:30.2]}
29. Kh1 {[%clk 0:00:02.9]} 29... gxf2 {[%clk 0:00:26.7]} 30. Rg1 {[%clk
0:00:03.3]} 30... fxg1=Q+ {[%clk 0:00:23.4]} 31. Rxg1 {[%clk 0:00:03.9]} 31...
Qxg1+ {[%clk 0:00:23.5]} 32. Kxg1 {[%clk 0:00:04.8]} 32... Nf3+ {[%clk 0:00:22]}
33. Kf2 {[%clk 0:00:04.7]} 33... Be6 {[%clk 0:00:20.6]} 34. Qg3+ {[%clk
0:00:04.3]} 34... Nhg5 {[%clk 0:00:19.8]} 35. Bf6 {[%clk 0:00:03.6]} 35... Rad8
{[%clk 0:00:17.4]} 36. Qf4 {[%clk 0:00:02.5]} 36... Rd2+ {[%clk 0:00:16.9]} 37.
Kg3 {[%clk 0:00:02]} 37... Bh3 {[%clk 0:00:11.8]} 38. Bxg5 {[%clk 0:00:01.3]}
38... Rg2+ {[%clk 0:00:12.3]} 39. Kxh3 {[%clk 0:00:01.8]} 39... Rxg5 {[%clk
0:00:12.3]} 40. Qxf7+ {[%clk 0:00:02.2]} 40... Kh8 {[%clk 0:00:11.8]} 41. Qxe8+
{[%clk 0:00:03.1]} 41... Kh7 {[%clk 0:00:12.1]} 42. Qxe4+ {[%clk 0:00:03.5]}
42... Kh6 {[%clk 0:00:12.5]} 43. Qxf3 {[%clk 0:00:03.9]} 43... Rh5+ {[%clk
0:00:13.1]} 44. Kg3 {[%clk 0:00:04.4]} 44... Rb5 {[%clk 0:00:13.9]} 45. Kf2
{[%clk 0:00:05]} 45... Rg5 {[%clk 0:00:14.8]} 46. Qf6+ {[%clk 0:00:04.6]} 46...
Kh5 {[%clk 0:00:14.8]} 47. Qh8+ {[%clk 0:00:04.6]} 47... Kg4 {[%clk 0:00:15.2]}
48. Bd1+ {[%clk 0:00:05.1]} 48... Kf5 {[%clk 0:00:16.1]} 49. Qf8+ {[%clk
0:00:05.1]} 49... Kg6 {[%clk 0:00:17]} 50. Bf3 {[%clk 0:00:05.3]} 50... Rf5
{[%clk 0:00:17.9]} 51. Qe8+ {[%clk 0:00:05.8]} 51... Kg5 {[%clk 0:00:18.3]} 52.
Qe3+ {[%clk 0:00:06.7]} 52... Kf6 {[%clk 0:00:18.3]} 53. Qd3 {[%clk 0:00:07.5]}
53... Rf4 {[%clk 0:00:18.3]} 54. Qe3 {[%clk 0:00:07.6]} 54... Rf5 {[%clk
0:00:18.3]} 55. Qb6+ {[%clk 0:00:07.8]} 55... Kg5 {[%clk 0:00:18.6]} 56. Qxb7
{[%clk 0:00:08.3]} 56... Rf6 {[%clk 0:00:18.8]} 57. Qg7+ {[%clk 0:00:08.6]}
57... Kf5 {[%clk 0:00:18.6]} 58. Qh7+ {[%clk 0:00:08.6]} 58... Ke5 {[%clk
0:00:19.1]} 59. Qe4+ {[%clk 0:00:09.4]} 59... Kd6 {[%clk 0:00:19.2]} 60. Qc6+
{[%clk 0:00:10]} 60... Ke7 {[%clk 0:00:19.4]} 61. Qxf6+ {[%clk 0:00:10.5]} 61...
Kxf6 {[%clk 0:00:19.7]} 62. Ke3 {[%clk 0:00:10.7]} 62... Ke5 {[%clk 0:00:20.1]}
63. Be4 {[%clk 0:00:10.7]} 63... Kd6 {[%clk 0:00:20.9]} 64. Kd4 {[%clk
0:00:10.7]} 64... a5 {[%clk 0:00:21]} 65. c4 {[%clk 0:00:11]} 65... Kc7 {[%clk
0:00:20.9]} 66. c5 {[%clk 0:00:11.9]} 66... Kb8 {[%clk 0:00:20.2]} 67. Kc4
{[%clk 0:00:12.8]} 67... Ka7 {[%clk 0:00:20.7]} 68. Kb5 {[%clk 0:00:13]} 68...
a4 {[%clk 0:00:21.6]} 69. Kxa4 {[%clk 0:00:13.2]} 69... Kb8 {[%clk 0:00:22.5]}
70. Kb4 {[%clk 0:00:13.8]} 70... Kc7 {[%clk 0:00:23.4]} 71. Kb5 {[%clk
0:00:14.3]} 71... Kd7 {[%clk 0:00:23.8]} 72. Kb6 {[%clk 0:00:14.6]} 1-0

[Event "*** SCC Grand Prix: Titled Tuesday Blitz"]
[Site "Chess.com"]
[Date "2020.06.23"]
[Round "9"]
[White "zala02"]
[Black "WPWPWP-2015"]
[Result "0-1"]
[WhiteElo "2187"]
[BlackElo "2361"]
[TimeControl "180+1"]
[EndTime "11:47:14 PDT"]
[Termination "WPWPWP-2015 won on time"]

1. d4 {[%clk 0:03:00.9]} 1... Nf6 {[%clk 0:02:53.4]} 2. c4 {[%clk 0:02:59.5]}
2... e6 {[%clk 0:02:52.2]} 3. Nc3 {[%clk 0:02:59.3]} 3... Bb4 {[%clk 0:02:50.7]}
4. Nf3 {[%clk 0:02:58.8]} 4... b6 {[%clk 0:02:48.5]} 5. Bg5 {[%clk 0:02:53.6]}
5... h6 {[%clk 0:02:46.2]} 6. Bh4 {[%clk 0:02:52.6]} 6... g5 {[%clk 0:02:45.9]}
7. Bg3 {[%clk 0:02:52]} 7... Ne4 {[%clk 0:02:46.5]} 8. Rc1 {[%clk 0:02:38.4]}
8... Bb7 {[%clk 0:02:40.1]} 9. e3 {[%clk 0:02:36.9]} 9... c5 {[%clk 0:02:33.3]}
10. Bd3 {[%clk 0:02:24.6]} 10... Bxc3+ {[%clk 0:02:20.2]} 11. bxc3 {[%clk
0:02:24.2]} 11... Nxg3 {[%clk 0:02:17.5]} 12. hxg3 {[%clk 0:02:23.9]} 12... g4
{[%clk 0:02:17]} 13. Nh4 {[%clk 0:02:21.6]} 13... Rg8 {[%clk 0:02:11.8]} 14. d5
{[%clk 0:02:13]} 14... Qf6 {[%clk 0:02:08.1]} 15. Be4 {[%clk 0:01:52.6]} 15...
d6 {[%clk 0:02:02.8]} 16. Qd3 {[%clk 0:01:43.3]} 16... e5 {[%clk 0:01:59.2]} 17.
Bf5 {[%clk 0:01:34.8]} 17... Na6 {[%clk 0:01:56.1]} 18. Qe4 {[%clk 0:01:14.7]}
18... h5 {[%clk 0:01:49.9]} 19. Qc2 {[%clk 0:00:45.4]} 19... Nc7 {[%clk
0:01:13.4]} 20. Qa4+ {[%clk 0:00:41.7]} 20... Kf8 {[%clk 0:01:12.8]} 21. Qd7
{[%clk 0:00:25.8]} 21... Qe7 {[%clk 0:01:10.1]} 22. Qxe7+ {[%clk 0:00:17.4]}
22... Kxe7 {[%clk 0:01:11]} 23. Be4 {[%clk 0:00:17.9]} 23... Bc8 {[%clk
0:01:10.4]} 24. Nf5+ {[%clk 0:00:16.6]} 24... Bxf5 {[%clk 0:01:09.9]} 25. Bxf5
{[%clk 0:00:17.5]} 25... Rg5 {[%clk 0:01:09.1]} 26. Be4 {[%clk 0:00:15.4]} 26...
Ne8 {[%clk 0:01:09.2]} 27. Rh4 {[%clk 0:00:13.9]} 27... f5 {[%clk 0:01:08.4]}
28. Bc2 {[%clk 0:00:13.2]} 28... Nf6 {[%clk 0:01:07.6]} 29. Kd2 {[%clk
0:00:13.2]} 29... e4 {[%clk 0:01:05.1]} 30. Ba4 {[%clk 0:00:12.3]} 30... Ng8
{[%clk 0:00:54.4]} 31. Bc6 {[%clk 0:00:11.9]} 31... Rb8 {[%clk 0:00:53.9]} 32.
Rch1 {[%clk 0:00:11.3]} 32... Nf6 {[%clk 0:00:53.1]} 33. a4 {[%clk 0:00:11.3]}
33... Rgg8 {[%clk 0:00:50.6]} 34. Ra1 {[%clk 0:00:10.6]} 34... Kf7 {[%clk
0:00:25.2]} 35. Kc2 {[%clk 0:00:10.8]} 35... Kg6 {[%clk 0:00:24.9]} 36. Rhh1
{[%clk 0:00:10.6]} 36... Rgd8 {[%clk 0:00:23]} 37. Ra2 {[%clk 0:00:10.5]} 37...
Ng8 {[%clk 0:00:21.6]} 38. Rb1 {[%clk 0:00:10.3]} 38... Nh6 {[%clk 0:00:20.9]}
39. Rab2 {[%clk 0:00:10.5]} 39... Nf7 {[%clk 0:00:20.6]} 40. a5 {[%clk
0:00:10.9]} 40... Ne5 {[%clk 0:00:20.7]} 41. axb6 {[%clk 0:00:10.7]} 41... axb6
{[%clk 0:00:20.3]} 42. Rxb6 {[%clk 0:00:10.5]} 42... Rxb6 {[%clk 0:00:20.3]} 43.
Rxb6 {[%clk 0:00:11.4]} 43... Nxc4 {[%clk 0:00:20.4]} 44. Rb7 {[%clk 0:00:11.3]}
44... Ne5 {[%clk 0:00:20.1]} 45. Bb5 {[%clk 0:00:10.5]} 45... Rh8 {[%clk
0:00:17.8]} 46. Re7 {[%clk 0:00:10.7]} 46... Rd8 {[%clk 0:00:12.6]} 47. Be8+
{[%clk 0:00:08.3]} 47... Kf6 {[%clk 0:00:11.5]} 48. Re6+ {[%clk 0:00:08.4]}
48... Kg5 {[%clk 0:00:10.6]} 49. c4 {[%clk 0:00:06.4]} 49... h4 {[%clk
0:00:06.8]} 50. gxh4+ {[%clk 0:00:06.3]} 50... Kxh4 {[%clk 0:00:07.2]} 51. Bb5
{[%clk 0:00:07]} 51... Kg5 {[%clk 0:00:06.5]} 52. Kc3 {[%clk 0:00:06.7]} 52...
g3 {[%clk 0:00:04.2]} 53. fxg3 {[%clk 0:00:06.2]} 53... Kg4 {[%clk 0:00:04.5]}
54. Re7 {[%clk 0:00:06.3]} 54... Kxg3 {[%clk 0:00:04.7]} 55. Rg7+ {[%clk
0:00:06.6]} 55... Kf2 {[%clk 0:00:05]} 56. Kd2 {[%clk 0:00:06.9]} 56... Ng4
{[%clk 0:00:05.3]} 57. Rg5 {[%clk 0:00:06.4]} 57... Rf8 {[%clk 0:00:04.4]} 58.
Bd7 {[%clk 0:00:05.6]} 58... Nxe3 {[%clk 0:00:04.3]} 59. Rg7 {[%clk 0:00:03.8]}
59... Nxc4+ {[%clk 0:00:04]} 60. Kc3 {[%clk 0:00:03.5]} 60... Ne5 {[%clk
0:00:04.1]} 61. Be6 {[%clk 0:00:02.6]} 61... e3 {[%clk 0:00:04.2]} 0-1

[Event "*** SCC Grand Prix: Titled Tuesday Blitz"]
[Site "Chess.com"]
[Date "2020.06.23"]
[Round "9"]
[White "kakakz"]
[Black "Shankovskyi"]
[Result "1-0"]
[WhiteElo "2363"]
[BlackElo "2446"]
[TimeControl "180+1"]
[EndTime "11:47:31 PDT"]
[Termination "kakakz won on time"]

1. d4 {[%clk 0:03:00]} 1... e6 {[%clk 0:02:59.3]} 2. c4 {[%clk 0:02:57.7]} 2...
d5 {[%clk 0:02:59.4]} 3. Nf3 {[%clk 0:02:56.8]} 3... c6 {[%clk 0:02:58.7]} 4. g3
{[%clk 0:02:54.4]} 4... f5 {[%clk 0:02:59.2]} 5. Bg2 {[%clk 0:02:50.9]} 5... Nf6
{[%clk 0:02:59.6]} 6. O-O {[%clk 0:02:50.9]} 6... Bd6 {[%clk 0:02:59.6]} 7. b3
{[%clk 0:02:51.4]} 7... Qe7 {[%clk 0:02:59.2]} 8. a4 {[%clk 0:02:50.5]} 8... Na6
{[%clk 0:02:51]} 9. Ba3 {[%clk 0:02:48.6]} 9... Bxa3 {[%clk 0:02:41.8]} 10. Nxa3
{[%clk 0:02:48.4]} 10... O-O {[%clk 0:02:41.9]} 11. Nc2 {[%clk 0:02:43.1]} 11...
b6 {[%clk 0:02:36]} 12. Ne5 {[%clk 0:02:40.7]} 12... Bb7 {[%clk 0:02:35.6]} 13.
a5 {[%clk 0:01:54.4]} 13... Nd7 {[%clk 0:02:33.6]} 14. Nxd7 {[%clk 0:01:44.9]}
14... Qxd7 {[%clk 0:02:32.9]} 15. cxd5 {[%clk 0:01:45.1]} 15... cxd5 {[%clk
0:02:13.6]} 16. Ne1 {[%clk 0:01:42]} 16... Bc6 {[%clk 0:02:13]} 17. Nd3 {[%clk
0:01:39.4]} 17... Bb5 {[%clk 0:02:12.8]} 18. Ne5 {[%clk 0:01:38.2]} 18... Qd6
{[%clk 0:02:13.2]} 19. Qd2 {[%clk 0:01:15.2]} 19... Rfc8 {[%clk 0:02:08.7]} 20.
Rfc1 {[%clk 0:01:13.3]} 20... h6 {[%clk 0:02:06.2]} 21. h4 {[%clk 0:01:11.9]}
21... Kh7 {[%clk 0:01:53.6]} 22. Bf3 {[%clk 0:01:11.5]} 22... Rxc1+ {[%clk
0:01:34.4]} 23. Rxc1 {[%clk 0:01:06.4]} 23... Be8 {[%clk 0:01:34.2]} 24. Qf4
{[%clk 0:00:48.8]} 24... bxa5 {[%clk 0:01:24]} 25. g4 {[%clk 0:00:48.6]} 25...
fxg4 {[%clk 0:01:16]} 26. Bxg4 {[%clk 0:00:44.3]} 26... Rb8 {[%clk 0:01:13.3]}
27. Rc3 {[%clk 0:00:43.9]} 27... Qe7 {[%clk 0:01:06.4]} 28. Rf3 {[%clk 0:00:25]}
28... Rc8 {[%clk 0:00:56.2]} 29. Kg2 {[%clk 0:00:22.9]} 29... Nb4 {[%clk
0:00:53.6]} 30. Qd2 {[%clk 0:00:13.9]} 30... Bb5 {[%clk 0:00:17.2]} 31. Rg3
{[%clk 0:00:13.2]} 31... Rf8 {[%clk 0:00:16.4]} 32. Bh5 {[%clk 0:00:13.1]} 32...
Qxh4 {[%clk 0:00:13.6]} 33. Bg6+ {[%clk 0:00:11.8]} 33... Kg8 {[%clk 0:00:13.6]}
34. Bb1 {[%clk 0:00:11.3]} 34... Qf6 {[%clk 0:00:11.1]} 35. Qe3 {[%clk
0:00:09.9]} 35... Nc6 {[%clk 0:00:07.1]} 36. Nd7 {[%clk 0:00:09.2]} 36... Qf7
{[%clk 0:00:04.3]} 37. Nxf8 {[%clk 0:00:08.9]} 37... Qxf8 {[%clk 0:00:05.2]} 38.
Qc1 {[%clk 0:00:07.2]} 38... Qf6 {[%clk 0:00:05.1]} 39. Qc2 {[%clk 0:00:07.2]}
39... Nxd4 {[%clk 0:00:03.4]} 40. Qh7+ {[%clk 0:00:07.5]} 40... Kf8 {[%clk
0:00:04.3]} 41. Qh8+ {[%clk 0:00:07.9]} 41... Kf7 {[%clk 0:00:04.5]} 42. Bg6+
{[%clk 0:00:07.7]} 42... Ke7 {[%clk 0:00:04.9]} 43. Bh5 {[%clk 0:00:08]} 43...
Nf5 {[%clk 0:00:05.2]} 44. Rc3 {[%clk 0:00:06.6]} 44... Qe5 {[%clk 0:00:04.4]}
45. Bf3 {[%clk 0:00:06.3]} 45... Qxc3 {[%clk 0:00:03.6]} 46. Qa8 {[%clk
0:00:05.4]} 46... Qc7 {[%clk 0:00:02.8]} 47. Qh8 {[%clk 0:00:04.3]} 47... Kf7
{[%clk 0:00:02.5]} 48. Bh5+ {[%clk 0:00:03.9]} 48... Ke7 {[%clk 0:00:01.6]} 49.
Bg4 {[%clk 0:00:03.7]} 49... Kd6 {[%clk 0:00:01.9]} 50. Qf8+ {[%clk 0:00:02.8]}
50... Qe7 {[%clk 0:00:02.4]} 51. Qb8+ {[%clk 0:00:02.8]} 51... Kd7 {[%clk
0:00:02.3]} 52. Qxb5+ {[%clk 0:00:02.8]} 52... Kd8 {[%clk 0:00:02.4]} 53. Qb8+
{[%clk 0:00:02.8]} 53... Kd7 {[%clk 0:00:02.7]} 54. Qxa7+ {[%clk 0:00:03.3]}
54... Kd6 {[%clk 0:00:03.3]} 55. Qxa5 {[%clk 0:00:03.3]} 55... Qg5 {[%clk
0:00:03.6]} 56. Qb4+ {[%clk 0:00:03.3]} 56... Ke5 {[%clk 0:00:02.7]} 57. e3
{[%clk 0:00:01.3]} 57... Nd6 {[%clk 0:00:02.2]} 58. f4+ {[%clk 0:00:01.5]} 1-0

[Event "*** SCC Grand Prix: Titled Tuesday Blitz"]
[Site "Chess.com"]
[Date "2020.06.23"]
[Round "9"]
[White "bait_or_mate"]
[Black "chigorin28"]
[Result "1-0"]
[WhiteElo "2629"]
[BlackElo "2432"]
[TimeControl "180+1"]
[EndTime "11:47:34 PDT"]
[Termination "bait_or_mate won on time"]

1. d4 {[%clk 0:03:00.9]} 1... Nf6 {[%clk 0:02:59.7]} 2. c4 {[%clk 0:03:01.8]}
2... e5 {[%clk 0:02:59.4]} 3. dxe5 {[%clk 0:03:01.8]} 3... Ng4 {[%clk
0:02:59.7]} 4. Nf3 {[%clk 0:03:01.6]} 4... Nc6 {[%clk 0:03:00]} 5. e3 {[%clk
0:02:55.2]} 5... Bb4+ {[%clk 0:02:56.8]} 6. Nbd2 {[%clk 0:02:50.4]} 6... O-O
{[%clk 0:02:48.1]} 7. a3 {[%clk 0:02:47.8]} 7... Bxd2+ {[%clk 0:02:47.7]} 8.
Bxd2 {[%clk 0:02:48.7]} 8... Ngxe5 {[%clk 0:02:47.8]} 9. Bc3 {[%clk 0:02:40.9]}
9... d6 {[%clk 0:02:39.4]} 10. Be2 {[%clk 0:02:39.4]} 10... Bf5 {[%clk 0:02:35]}
11. O-O {[%clk 0:02:37.6]} 11... Qe7 {[%clk 0:02:34]} 12. Rc1 {[%clk 0:02:29.6]}
12... Rfe8 {[%clk 0:02:33.6]} 13. Re1 {[%clk 0:02:27.9]} 13... Rad8 {[%clk
0:02:29.3]} 14. Nd4 {[%clk 0:02:02.1]} 14... Bd7 {[%clk 0:02:14.9]} 15. h3
{[%clk 0:01:53.1]} 15... Qh4 {[%clk 0:02:09.4]} 16. Nf3 {[%clk 0:01:39.5]} 16...
Qe7 {[%clk 0:01:58]} 17. Qc2 {[%clk 0:01:32.5]} 17... b6 {[%clk 0:01:50.1]} 18.
b3 {[%clk 0:01:29.6]} 18... Nxf3+ {[%clk 0:01:50.1]} 19. Bxf3 {[%clk 0:01:28.7]}
19... Ne5 {[%clk 0:01:50.7]} 20. Be2 {[%clk 0:01:28.4]} 20... Bc6 {[%clk
0:01:49.1]} 21. Bf1 {[%clk 0:00:42.9]} 21... Qh4 {[%clk 0:01:36.3]} 22. f4
{[%clk 0:00:37.4]} 22... Nd7 {[%clk 0:01:33.3]} 23. Qf2 {[%clk 0:00:33.4]} 23...
Qxf2+ {[%clk 0:01:27.8]} 24. Kxf2 {[%clk 0:00:34.3]} 24... Nc5 {[%clk
0:01:28.3]} 25. b4 {[%clk 0:00:30]} 25... Ne4+ {[%clk 0:01:25.8]} 26. Kg1 {[%clk
0:00:30.5]} 26... Nxc3 {[%clk 0:01:24.7]} 27. Rxc3 {[%clk 0:00:31.4]} 27... Re7
{[%clk 0:01:17.3]} 28. g3 {[%clk 0:00:31.2]} 28... Rde8 {[%clk 0:01:17.5]} 29.
Bg2 {[%clk 0:00:31.1]} 29... Bxg2 {[%clk 0:01:16.2]} 30. Kxg2 {[%clk 0:00:32]}
30... f5 {[%clk 0:01:15]} 31. Kf3 {[%clk 0:00:31.7]} 31... Kf7 {[%clk
0:01:08.6]} 32. Rd1 {[%clk 0:00:30.6]} 32... Kf6 {[%clk 0:01:04.8]} 33. c5
{[%clk 0:00:26.9]} 33... dxc5 {[%clk 0:01:02]} 34. bxc5 {[%clk 0:00:27]} 34...
Re6 {[%clk 0:00:43.4]} 35. Rd7 {[%clk 0:00:20.6]} 35... R8e7 {[%clk 0:00:41.5]}
36. Rxe7 {[%clk 0:00:20.5]} 36... Rxe7 {[%clk 0:00:38]} 37. cxb6 {[%clk
0:00:20.3]} 37... cxb6 {[%clk 0:00:38.4]} 38. Rc4 {[%clk 0:00:20.1]} 38... g6
{[%clk 0:00:36.8]} 39. Rc6+ {[%clk 0:00:19.6]} 39... Kf7 {[%clk 0:00:36]} 40. a4
{[%clk 0:00:19.7]} 40... Rb7 {[%clk 0:00:34.4]} 41. a5 {[%clk 0:00:19.3]} 41...
bxa5 {[%clk 0:00:27.1]} 42. Ra6 {[%clk 0:00:20.2]} 42... h5 {[%clk 0:00:20.4]}
43. Rxa5 {[%clk 0:00:19]} 43... Re7 {[%clk 0:00:20.3]} 44. Ra3 {[%clk
0:00:18.8]} 44... Kg7 {[%clk 0:00:16.4]} 45. g4 {[%clk 0:00:18.6]} 45... hxg4+
{[%clk 0:00:16.6]} 46. hxg4 {[%clk 0:00:19.5]} 46... Rd7 {[%clk 0:00:14.2]} 47.
Ra6 {[%clk 0:00:16.5]} 47... Kf7 {[%clk 0:00:13.8]} 48. g5 {[%clk 0:00:13.3]}
48... Re7 {[%clk 0:00:13.8]} 49. Ra5 {[%clk 0:00:12.9]} 49... Kg7 {[%clk
0:00:13.9]} 50. Ra3 {[%clk 0:00:12.5]} 50... Rd7 {[%clk 0:00:14]} 51. Ra4 {[%clk
0:00:09.7]} 51... Kf7 {[%clk 0:00:14.2]} 52. Ra3 {[%clk 0:00:09.7]} 52... Ke7
{[%clk 0:00:13.9]} 53. Ra6 {[%clk 0:00:09.3]} 53... Kf7 {[%clk 0:00:14.2]} 54.
Ra5 {[%clk 0:00:05.8]} 54... Kg8 {[%clk 0:00:14.3]} 55. Ra4 {[%clk 0:00:06]}
55... Rg7 {[%clk 0:00:13.6]} 56. Ra3 {[%clk 0:00:05.1]} 56... Kf8 {[%clk
0:00:13.9]} 57. e4 {[%clk 0:00:05.2]} 57... fxe4+ {[%clk 0:00:13.7]} 58. Kxe4
{[%clk 0:00:06.1]} 58... Re7+ {[%clk 0:00:14]} 59. Kd5 {[%clk 0:00:06.6]} 59...
Kf7 {[%clk 0:00:14]} 60. Kd6 {[%clk 0:00:06.9]} 60... Re6+ {[%clk 0:00:13.5]}
61. Kd5 {[%clk 0:00:07.4]} 61... a6 {[%clk 0:00:13.2]} 62. Rb3 {[%clk
0:00:07.6]} 62... Re1 {[%clk 0:00:08.2]} 63. Rb7+ {[%clk 0:00:07.1]} 63... Kf8
{[%clk 0:00:07.9]} 64. Ra7 {[%clk 0:00:07]} 64... Ra1 {[%clk 0:00:07.8]} 65. Ke6
{[%clk 0:00:06.5]} 65... Ra4 {[%clk 0:00:07.4]} 66. Ke5 {[%clk 0:00:05]} 66...
Ra5+ {[%clk 0:00:07.3]} 67. Kf6 {[%clk 0:00:05]} 67... Rf5+ {[%clk 0:00:04.9]}
68. Kxg6 {[%clk 0:00:05.2]} 68... Rxf4 {[%clk 0:00:05]} 69. Ra8+ {[%clk
0:00:05.5]} 69... Ke7 {[%clk 0:00:04.8]} 70. Rxa6 {[%clk 0:00:06.4]} 70... Rc4
{[%clk 0:00:01.7]} 71. Rf6 {[%clk 0:00:06.1]} 71... Rc1 {[%clk 0:00:01.5]} 72.
Kg7 {[%clk 0:00:06.4]} 1-0